Cogmind - Beta 13 @@@ ROGUE MODE // 2024.03.17 @ 12:38:43 Player: 3.14 Result: Destroyed by D-53 Grenadier with Mini Grenade Launcher Performance ------------- Evolutions (0) 0 Regions Visited (2) 400 Robots Destroyed (18) 90 Value Destroyed (539) 539 Prototype IDs (0) 0 Alien Tech Used (0) 0 Bonus (64) 64 TOTAL SCORE: 1093 Bonus ------- Follower Combat Kills 92 Friendly Fire -28 Cogmind --------- Core Integrity 0/250 Matter 260/300 Energy 15/100 System Corruption 0% Temperature Cool (0) Movement Treading (320) Ox2 Location -10/Mines Parts ------- > --- POWER (1) -------- (None) > --- PROPULSION (2) --- Improved Treads > --- UTILITY (2) ------ Improved Heat Sink High-capacity Storage Unit > --- WEAPON (2) ------- Beam Rifle Light EM Pulse Cannon > --- INVENTORY (20) --- Improved Treads Improved Treads High-capacity Storage Unit High-capacity Matter Pod (86) Structural Scanner Hardened Light Armor Plating Hardened Light Armor Plating Hardened Light Armor Plating Hardened Light Armor Plating Hacking Suite Light EM Pulse Cannon Light EM Pulse Cannon Light Assault Rifle Mace Peak State ------------ > --- POWER ------------ Light Nuclear Core > --- PROPULSION ------- Improved Treads Improved Treads > --- UTILITY ---------- Improved Heat Sink High-capacity Storage Unit > --- WEAPON ----------- Beam Rifle Beam Rifle > --- INVENTORY -------- Improved Treads Improved Treads High-capacity Storage Unit High-capacity Matter Pod Structural Scanner Hardened Light Armor Plating Hardened Light Armor Plating Hardened Light Armor Plating Hardened Light Armor Plating Hacking Suite Beam Rifle Light EM Pulse Cannon Light EM Pulse Cannon Light EM Pulse Cannon Light Assault Rifle Mace [Rating: 17] Favorites ----------- Power Light Nuclear Core Engine Ion Engine Power Core Light Nuclear Core Propulsion Light Treads Treads Light Treads Leg Aluminum Leg Utility High-capacity Storage Unit Device Improved Heat Sink Storage High-capacity Storage Unit Protection Hardened Light Armor Plating Weapon Light Assault Rifle Energy Gun Beam Rifle Energy Cannon Light EM Pulse Cannon Ballistic Gun Light Assault Rifle Impact Weapon Mace Build | -11 -10 -10 ------- Run | Yrd Mat Min Slots Evolved . | . . . Power . | . . . Propulsion . | . . . Utility . | . . . Weapon . | . . . Parts Attached 30 | . 18 12 Power 2 | . 1 1 Engine . | . . . Core 2 | . 1 1 Reactor . | . . . Propulsion 9 | . 7 2 Treads 6 | . 4 2 Leg 3 | . 3 . Wheel . | . . . Hover . | . . . Flight . | . . . Utility 5 | . 3 2 Device 2 | . 1 1 Storage 2 | . 1 1 Processor . | . . . Hackware . | . . . Protection 1 | . 1 . Artifact . | . . . Weapon 14 | . 7 7 Energy Gun 8 | . 3 5 Energy Cannon 1 | . . 1 Ballistic Gun 4 | . 4 . Ballistic Cannon . | . . . Launcher . | . . . Special Weapon . | . . . Impact Weapon 1 | . . 1 Slashing Weapon . | . . . Piercing Weapon . | . . . Special Melee Weapon . | . . . Unidentified Prototypes . | . . . Parts Lost 9 | . 1 8 Power 2 | . . 2 Propulsion 3 | . . 3 Utility . | . . . Weapon 4 | . 1 3 Highest Loss Streak 8 | . 1 8 To Critical Strikes . | . . . Average Slot Usage (%) 98 | . 96 99 Engine 6 | . 12 . Core 7 | . 1 13 Treads 25 | . 24 28 Leg 1 | . 3 . Device 3 | . 1 4 Storage 14 | . 14 14 Protection 10 | . 11 9 Energy Gun 9 | . 1 18 Ballistic Gun 17 | . 24 8 Naked Turns . | . . . Heaviest Build 54 | 14 53 54 Greatest Support 40 | 20 40 40 Greatest Overweight (x) 1 | . 1 1 Average Overweight (x) . | . . 1 Largest Inventory Capacity 20 | . 20 20 Average Capacity 17 | . 14 20 Most Carried 20 | . 20 20 Average Carried 14 | . 10 19 Final Capacity 20 | 8 20 20 Final Carried 20 | 6 20 14 Class Distribution -------------------- 100% | Mutant Dominant Class ---------------- Mutant | -10/Materials Mutant | -10/Mines Resources | -11 -10 -10 ----------- Run | Yrd Mat Min Matter Collected 723 | 174 431 118 Remotely . | . . . Salvage Created 701 | . 537 164 Parts 44 | . 37 7 Haulers Intercepted 1 | . 1 . Recyclers Shooed 1 | . . 1 Parts Field Recycled . | . . . Retrieved Matter . | . . . Parts Self-Destructed . | . . . Prevented . | . . . Kills | -11 -10 -10 ------- Run | Yrd Mat Min Combat Hostiles Destroyed 14 | . 10 4 Guns 14 | . 10 4 Classes Destroyed 6 | . 3 3 Hauler 1 | . 1 . Recycler 1 | . . 1 Operator 2 | . 2 . Swarmer 2 | . . 2 Grunt 11 | . 10 1 Demolisher 1 | . . 1 Best Kill Streak 3 | . 3 2 Combat Bots Only 3 | . 3 2 Max Kills in Single Turn 1 | . 1 1 Gunslinging . | . . . Exploded . | . . . Melee . | . . . Uniques/NPCs Destroyed . | . . . Combat | -11 -10 -10 -------- Run | Yrd Mat Min Hostile Shots Fired 114 | . 71 43 Missed 24 | . 18 6 Damage Taken 1740 | . 706 1034 Core 252 | . 99 153 Absorbed by Shields . | . . . Core Remaining (%) 100 | 100 . . Volleys Fired 73 | . 50 23 Largest 2 | . 2 2 Hottest 112 | . 60 112 Shots Fired 144 | . 100 44 Gun 143 | . 100 43 Cannon 1 | . . 1 Launcher . | . . . Special . | . . . Kinetic 92 | . 90 2 Thermal 46 | . 5 41 Explosive . | . . . Electromagnetic 6 | . 5 1 Robot Hit Streak 9 | . 9 9 Robot Miss Streak 6 | . 6 3 Penetration Max . | . . . Secondary Targets 2 | . 2 . Max Gunslinging Chain 1 | . 1 . Shots Hit Robots 86 | . 63 23 Core Hits 41 | . 28 13 Critical Kills . | . . . Critical Parts Destroyed 2 | . 2 . Critical Strikes 5 | . 2 3 Burn 3 | . . 3 Destroy 2 | . 2 . Melee Attacks 2 | . . 2 Impact 2 | . . 2 Slashing . | . . . Piercing . | . . . Sneak Attacks . | . . . Combat Hostiles . | . . . Follow-up Attacks . | . . . Damage Inflicted 1199 | . 780 419 Guns 1145 | . 758 387 Cannons 19 | . . 19 Explosions . | . . . Melee . | . . . Ramming 35 | . 22 13 Kinetic 686 | . 680 6 Thermal 423 | . 42 381 Explosive . | . . . Electromagnetic 55 | . 36 19 Impact . | . . . Slashing . | . . . Piercing . | . . . Highest Corruption . | . . . Average Corruption . | . . . Corruption Purged . | . . . Corruption Blocked . | . . . Overload Shots . | . . . Overflow Damage . | . . . Projectiles . | . . . Explosions . | . . . Melee . | . . . Knockbacks 1 | . 1 . Impact 1 | . 1 . Kinetic . | . . . Secondary . | . . . Self-Inflicted Damage . | . . . Shots . | . . . Rammed 6 | . 2 4 Targets Rammed 6 | . 2 4 Kicked . | . . . Crushed . | . . . Highest Temperature 110 | . 110 96 Average Temperature 33 | . 33 33 Received Heat Transfer 456 | . 414 42 Siege Activations . | . . . Robots Corrupted . | . . . Combat Hostiles . | . . . Parts Fried . | . . . Impact Corruptions . | . . . Robots Melted . | . . . Combat Hostiles . | . . . Parts Melted 5 | . . 5 Heat Transferred 1284 | . 100 1184 Parts Sabotaged . | . . . Parts Stolen . | . . . Parts Stripped . | . . . Power Chain Reactions . | . . . Alert | -11 -10 -10 ------- Run | Yrd Mat Min Peak Influence 228 | . 228 145 Initial 10 | . . 10 Average 56 | . 71 39 Maximum Alert Level 1 | . 1 . Low Security (%) 98 | . 97 100 Level 1 1 | . 2 . Level 2 . | . . . Level 3 . | . . . Level 4 . | . . . Level 5 . | . . . High Security . | . . . Max Security . | . . . Squads Dispatched 2 | . 2 . Investigation . | . . . Extermination . | . . . Reinforcement 2 | . 2 . Assault . | . . . Garrison . | . . . Intercept . | . . . Searches Triggered . | . . . Construction Impeded . | . . . Haulers Reinforced . | . . . Active Scanning Responses . | . . . Cargo Convoy Interrupts . | . . . Stealth | -11 -10 -10 --------- Run | Yrd Mat Min Distress Signals 3 | . 3 . Communications Jammed . | . . . Distress Signals . | . . . Times Spotted 35 | . 26 9 Peak Tracking Total 4 | . 4 3 Tactical Retreats 1 | . 1 . Traps | -11 -10 -10 ------- Run | Yrd Mat Min Traps Triggered 2 | . 2 . Indirectly . | . . . Trap Hack Attempts . | . . . Triggered . | . . . Disarmed . | . . . Reprogrammed . | . . . Reused . | . . . Traps Extracted . | . . . Installed . | . . . Triggered . | . . . Machines | -11 -10 -10 ---------- Run | Yrd Mat Min Machines Disabled . | . . . Max in Single Turn . | . . . Machines Repaired . | . . . Machines Dismantled . | . . . Machines Sabotaged . | . . . Overloaded Fab Kills . | . . . Hacking | -11 -10 -10 --------- Run | Yrd Mat Min Machines Accessed 1 | . 1 . Terminals 1 | . 1 . Fabricators . | . . . Repair Stations . | . . . Recycling Units . | . . . Scanalyzers . | . . . Garrison Access . | . . . Total Hacks 4 | . 4 . Successful 1 | . 1 . Failed 3 | . 3 . Catastrophic . | . . . Database Lockouts . | . . . Manual 4 | . 4 . Terminals 4 | . 4 . Fabricators . | . . . Repair Stations . | . . . Recycling Units . | . . . Scanalyzers . | . . . Garrison Access . | . . . Terminal Hacks 1 | . 1 . Robot Analysis 1 | . 1 . Fabricator Hacks . | . . . Repair Station Hacks . | . . . Recycling Unit Hacks . | . . . Scanalyzer . | . . . Garrison Access Hacks . | . . . Unauthorized Hacks . | . . . Terminals . | . . . Fabricators . | . . . Repair Stations . | . . . Recycling Units . | . . . Scanalyzers . | . . . Garrison Access . | . . . Data Cores Recovered . | . . . Used . | . . . Hacking Detections 1 | . 1 . Full Trace Events . | . . . Feedback Events . | . . . Feedback Blocked . | . . . Robot Schematics Acquired . | . . . Robots Built . | . . . Authchips . | . . . Time . | . . . Total Robot Build Rating . | . . . Part Schematics Acquired . | . . . Parts Built . | . . . Authchips . | . . . Time . | . . . Total Part Build Rating . | . . . Parts Repaired . | . . . Time . | . . . Parts Recycled . | . . . Recycled Matter . | . . . Retrieved Matter . | . . . Retrieved Components . | . . . Parts Scanalyzed . | . . . Part Schematics Acquired . | . . . Parts Damaged . | . . . Bothacking | -11 -10 -10 ------------ Run | Yrd Mat Min Used RIF Installer . | . . . Robots Hacked . | . . . Non-combat . | . . . Combat . | . . . Robot Hacks Applied . | . . . Relay Couplers Released . | . . . Fabnet Peak Effective % . | . . . Robots Rewired . | . . . Allies Hacked . | . . . Hacks Repelled . | . . . Allies | -11 -10 -10 -------- Run | Yrd Mat Min Total Allies 3 | . . 3 Largest Group 3 | . . 3 Highest-Rated Group 40 | . . 40 Highest-Rated Ally 16 | . . 16 Total Orders . | . . . Ally Attacks 30 | . . 30 Total Damage 265 | . . 265 Kills 4 | . . 4 Allies Corrupted . | . . . Allies Melted . | . . . Intel | -11 -10 -10 ------- Run | Yrd Mat Min Robot Analysis Total 1 | . 1 . Derelict Logs Recovered 1 | . . 1 Drone Launches . | . . . Drone Recoveries . | . . . Exploration | -11 -10 -10 ------------- Run | Yrd Mat Min Turns Passed 2195 | . 1150 1045 Spaces Moved 875 | 1 483 391 Core . | . . . Treads 785 | . 394 391 Legs 90 | 1 89 . Wheels . | . . . Hover . | . . . Flight . | . . . Fastest Speed 120 | 120 120 240 Average Speed 212 | 120 191 240 Slowest Speed 240 | 120 240 240 Overloaded Moves . | . . . Propulsion Burnouts . | . . . Robots Hopped . | . . . Cave-ins Triggered . | . . . Exploration Rate (%) 40 | 2 52 68 Regions Visited 2 Branch Regions 1 Pre-discovered Areas . | . . . Known Exits Taken . | . . . Unknown Exits Taken 2 | 1 1 . Scrap Searched 1 | . . 1 Spaces Dug 2 | . . 2 Terrain Destroyed 2 | . . 2 Melee 2 | . . 2 Projectile . | . . . AOE . | . . . Terrain Rammed . | . . . Walls Destroyed . | . . . Machines Disabled . | . . . Actions | -11 -10 -10 --------- Run | Yrd Mat Min Total 1056 | . 611 445 Wait 25 | . 19 6 Move 873 | . 482 391 Hop . | . . . Pick Up 29 | . 25 4 Fast Attach 7 | . 7 . Attach 12 | . 4 8 Detach . | . . . Swap 11 | . 7 4 Drop 18 | . 15 3 Fire 73 | . 50 23 Melee 2 | . . 2 Ram . | . . . Kick . | . . . Crush 6 | . 2 4 Escape Stasis . | . . . Rewire . | . . . Trap . | . . . Miscellaneous . | . . . Route ------- -11/Scrapyard -10/Materials (discovered 4 exits: [*Mat x2] / [*Min x2]) -10/Mines History --------- Turn | Location | Event 1 | -11/Scrapyard | Discovered new exit (range 0) 1 | -11/Scrapyard | Entered Materials 143 | -10/Materials | Discovered new exit (range 15) 303 | -10/Materials | Discovered new exit (range 16) 304 | -10/Materials | Build established: Mutant 356 | -10/Materials | Discovered new exit (range 5) 596 | -10/Materials | Discovered new exit (range 13) 1151 | -10/Materials | Entered Mines 1157 | -10/Mines | Assisted by bots powering up and referring to "LRC-V3" 1161 | -10/Mines | Met a Derelict bent on vengeance 1529 | -10/Mines | Learned location of 1 exit from Materials 2154 | -10/Mines | Assembled infested the area 2159 | -10/Mines | Assisted by a Guerilla fighting off Assembled 2170 | -10/Mines | Core integrity fell below 50% 2180 | -10/Mines | Core integrity fell below 20% 2196 | -10/Mines | Destroyed by D-53 Grenadier with Mini Grenade Launcher Last Messages --------------- 02176_ The unstable cave ceiling collapses. 02177_ Beam Rifle destroyed. 02178_ The unstable cave ceiling collapses. 02179_ Lgt. Treads destroyed. 02181_ The unstable cave ceiling collapses. 02181_ D-53 Grenadier suffers critical hit (Burn). 02182_ The unstable cave ceiling collapses. 02183_ Beam Rifle destroyed. 02185_ Mni. Grenade Launcher melted. 02185_ Launcher Guidance Computer melted. 02185_ Cmb. Airjet melted. 02185_ D-53 Grenadier destroyed. 02186_ The unstable cave ceiling collapses. 02187_ Lgt. Nuclear Core destroyed. 02187_ Beam Rifle destroyed. 02188_ The unstable cave ceiling collapses. 02193_ D-53 Grenadier suffers critical hit (Burn). 02194_ The unstable cave ceiling collapses. 02194_ Imp. Treads destroyed. 02195_ The unstable cave ceiling collapses. Map ----- +----------------------------------------------------+ | ?????????# ##???????????# ## ##???? | | ?????????# #????????????# #???? | | ????????## #???????????## #???? | | ????????# ############# #???? | | ????????# ## ## #???? | | ????????## ## ####### #???? | | ?????????## ####### ## ##?????# #???? | | ??????????## ##????# ## #??????# #???? | | ???????????# #????# ## #??????# #???? | | ???????????# #????# #?????## ##??? | | ???????????# #????# #?????# #??? | | ?????###??##!== ##???########?????? #??? | | ????## ## [%[ #???############### ##?? | | ???## = #??## #?? | | ???# ##??# #?? | | ?# %= ##??# ############# #??? | | # %= ##?# ###???????????## #??? | | # ] ### #??####??????### #??? | | ## #?## ##?????# #??? | | ? ##?## %=#?# #?????# ###??? | | ? #????## ###### ##????# #????? | | ?# ??????# #?## #????# #????? | | ??## ??????# ### ##???# #????? | | ?????????? # #???# #????? | | ???????? # # ##### #????? | | ??????? ## @ #????? | | ?????? ### #######????? | | ?????? ####?# ##?????????? | | ?????? #?????## ##?????????? | | ??????? ####???????## # #d #??????????? | | ?????????#????????????### % #??????????? | | ????????????????????????## ?????????? | | ?????????????????????????? ????????? | | ?????????????????????????? ???????? | | ?????????????????????????? % ### ??????? | | ?????????????????????????? ##??? ?????? | | ?????????????????????????? ??????????? | | ??????????????????????????# ??????????? | | ???????????????????????????######?????????? | | ??????????????????????????????????????????? | | ??????????????????????????????????????????? | | ??????????????????????????????????????????? | | ??????????????????????????????????????????? | | ??????????????????????????????????????????? | | ??????????????????????????????????????????? | | ??????????????????????????????????????????? | | ??????????????????????????????????????????? | | ??????????????????????????????????????????? | | ??????????????????????????????????????????? | | | +----------------------------------------------------+ Best States ------------- Heat Dissipation 39 Energy Generation 14 Energy Capacity 250 Matter Stores 300 Matter Capacity 300 Sight Range 16 Terrain Scan Density 10 Armor Coverage 150 Evasion (%) 55 Recoil Reduction 2 Item Schematics ----------------- None Robot Schematics ------------------ None Fabricated ------------ Nothing Alien Tech Used ----------------- None Achievements -------------- None Challenges ------------ None Game ------ Seed HardcellFortressSpecial Manual? 0 Play Time 00:09:50 Cumulative 875.5 hours Start 2024.03.17 @ 12:31:46 End 2024.03.17 @ 12:38:43 Sessions 1 Manual Loads 0 Difficulty Rogue Special Mode None Game No. 1338 Rogue 1338 Adventurer 0 Explorer 0 Win Type - Total 83 Types 49/1/14/14/4/0/0/1/0 Lore% 90 Gallery% 91 Achievement% 85 Wizard Run 0 Options --------- Layout 0 ASCII 1 Keyboard 0 Movement Numpad Keybinds 0 Fullscreen 2 Font 18/SmallcapsGlow Map View 76x50 Zoom Use 0% Tactical HUD 1 Map Filters NONE Filters NONE Steam 1 RUN: e61a95d0-d838-4037-b0e3-0ea1b7c65372